Workbook

Sheet Sheet1 المعلمون- (hidden)
A3: الرقم | B3: الاسم | C3: المبحث | D3: متوسط الدرجات | E3: نسبة النجاح% | F3: ممتاز | G3: جيد جدا | H3: جيد | I3: مقبول | J3: ضعيف | K3: راسب
A4: 1 | B4: حسن أحمد حسن السلمي(5أ) | C4: الرياضيات | D4: 75.76470588 | E4: 100 | F4: 8 | G4: 9 | H4: 4 | I4: 7 | J4: 6 | K4: 0
A5: 2 | B5: حسن احمد حسن السلمي (5ب) | C5: الرياضيات | D5: 66.67647059 | E5: 71 | F5: 8 | G5: 4 | H5: 3 | I5: 3 | J5: 6 | K5: 10
A6: 3 | B6: حسن أحمد حسن السلمي(5ج) | C6: الرياضيات | D6: 68.09090909 | E6: 79 | F6: 7 | G6: 6 | H6: 2 | I6: 5 | J6: 6 | K6: 7
A7: 4 | B7: حسن أحمد حسن السلمي(5د) | C7: الرياضيات | D7: 65.54285714 | E7: 89 | F7: 4 | G7: 6 | H7: 2 | I7: 11 | J7: 8 | K7: 4
A8: 5 | B8: حمزة نايف مصطفى الجلابنة(5د) | C8: التربية الوطنية والاجتماعية | D8: 75.65714286 | E8: 94 | F8: 6 | G8: 12 | H8: 11 | I8: 2 | J8: 2 | K8: 2
A9: 6 | B9: حمزة نايف مصطفى الجلابنة(6أ) | C9: تاريخ العرب والمسلمين | D9: 73.30555556 | E9: 97 | F9: 6 | G9: 10 | H9: 6 | I9: 5 | J9: 8 | K9: 1 | L9: الرقم | M9: 100 | N9: 200 | O9: 300 | P9: 400
A10: 7 | B10: حمزة نايف مصطفى الجلابنة(6ب) | C10: تاريخ العرب والمسلمين | D10: 77.02857143 | E10: 91 | F10: 9 | G10: 11 | H10: 7 | I10: 3 | J10: 2 | K10: 3 | L10: 1 | M10: 61 | N10: 163 | O10: 115
A11: 8 | B11: حمزة نايف مصطفى الجلابنة(6ج) | C11: تاريخ العرب والمسلمين | D11: 71.88571429 | E11: 79 | F11: 5 | G11: 12 | H11: 6 | I11: 5 | J11: 0 | K11: 7 | L11: 2 | M11: 75 | N11: 193 | O11: 129
A12: 9 | B12: حمزة نايف مصطفى الجلابنة(6د) | C12: تاريخ العرب والمسلمين | D12: 81.88571429 | E12: 94 | F12: 13 | G12: 10 | H12: 5 | I12: 3 | J12: 3 | K12: 1 | L12: 3 | M12: 94 | N12: 179 | O12: 0
A13: 10 | B13: حمزة نايف مصطفى الجلابنة(7ب) | C13: التاريخ | D13: 70.39473684 | E13: 95 | F13: 2 | G13: 11 | H13: 7 | I13: 9 | J13: 8 | K13: 1 | L13: 4 | M13: 74 | N13: 103 | O13: 156
A14: 11 | B14: حمزة نايف مصطفى الجلابنة (7ب) | C14: التاريخ | D14: 72.23684211 | E14: 95 | F14: 6 | G14: 11 | H14: 8 | I14: 5 | J14: 7 | K14: 1 | L14: 5 | M14: 99 | N14: 84 | O14: 219
A15: 12 | B15: حمزة نايف مصطفى الجلابنة (ا7ج) | C15: التاريخ | D15: 69.13157895 | E15: 85 | F15: 3 | G15: 7 | H15: 8 | I15: 8 | J15: 7 | K15: 5 | L15: 6 | M15: 86 | N15: 130 | O15: 115
A16: 13 | B16: حمزة نايف مصطفى الجلابنة (7د) | C16: التاريخ | D16: 65.02631579 | E16: 85 | F16: 2 | G16: 7 | H16: 6 | I16: 6 | J16: 12 | K16: 5 | L16: 7 | M16: 69 | N16: 94 | O16: 171
A17: 14 | B17: حمزة نايف مصطفى الجلابنة (8أ) | C17: التاريخ | D17: 74.95 | E17: 93 | F17: 9 | G17: 6 | H17: 12 | I17: 7 | J17: 4 | K17: 2 | L17: 8 | M17: 99 | N17: 0 | O17: 133
A18: 15 | B18: حمزة نايف مصطفى الجلابنة(8ب) | C18: التاريخ | D18: 66.94871795 | E18: 90 | F18: 2 | G18: 12 | H18: 7 | I18: 8 | J18: 6 | K18: 4 | L18: 9 | M18: 76 | N18: 164 | O18: 208
A19: 16 | B19: حمزة نايف مصطفى الجلابنة(8ج) | C19: التاريخ | D19: 59.5 | E19: 80 | F19: 3 | G19: 4 | H19: 3 | I19: 11 | J19: 11 | K19: 8 | L19: 10 | M19: 51 | N19: 188 | O19: 245
A20: 17 | B20: حمزة نايف مصطفى الجلابنة(8د) | C20: التاريخ | D20: 69.15384615 | E20: 79 | F20: 6 | G20: 7 | H20: 7 | I20: 5 | J20: 6 | K20: 8 | L20: 11 | M20: 79 | N20: 166 | O20: 207
A21: 18 | B21: حمزة نايف مصطفى الجلابنة(9أ) | C21: التاريخ | D21: 67.02439024 | E21: 83 | F21: 4 | G21: 6 | H21: 13 | I21: 4 | J21: 7 | K21: 7 | L21: 12 | M21: 84 | N21: 159 | O21: 133
A22: 19 | B22: حمزة نايف مصطفى الجلابنة(9ب) | C22: التاريخ | D22: 73.95238095 | E22: 90 | F22: 8 | G22: 11 | H22: 7 | I22: 6 | J22: 6 | K22: 4 | L22: 13 | M22: 51 | N22: 94 | O22: 150
A23: 20 | B23: حمزة نايف مصطفى الجلابنة(9ج) | C23: التاريخ | D23: 67.02325581 | E23: 91 | F23: 6 | G23: 7 | H23: 2 | I23: 16 | J23: 8 | K23: 4 | L23: 14 | M23: 86 | N23: 80 | O23: 115
A24: 21 | B24: حمزة نايف مصطفى الجلابنة(9د) | C24: التاريخ | D24: 67.11363636 | E24: 84 | F24: 5 | G24: 5 | H24: 11 | I24: 9 | J24: 7 | K24: 7 | L24: 15 | M24: 85 | N24: 146 | O24: 180
A25: 22 | B25: احمد يوسف جلال عوده الله (6أ) | C25: العلوم العامة | D25: 64.36111111 | E25: 72 | F25: 6 | G25: 4 | H25: 2 | I25: 5 | J25: 9 | K25: 10 | L25: 16 | M25: 84 | N25: 88 | O25: 201
A26: 23 | B26: احمد يوسف جلال عوده الله (6ب) | C26: العلوم العامة | D26: 68 | E26: 86 | F26: 3 | G26: 6 | H26: 10 | I26: 7 | J26: 4 | K26: 5 | L26: 17 | M26: 100 | N26: 150 | O26: 150
A27: 24 | B27: احمد يوسف جلال عوده الله (6ج) | C27: العلوم العامة | D27: 64.62857143 | E27: 69 | F27: 3 | G27: 7 | H27: 6 | I27: 4 | J27: 4 | K27: 11 | L27: 18 | M27: 98 | N27: 80 | O27: 153
A28: 25 | B28: احمد يوسف جلال عوده الله (6د) | C28: العلوم العامة | D28: 76.74285714 | E28: 97 | F28: 8 | G28: 9 | H28: 7 | I28: 6 | J28: 4 | K28: 1 | L28: 19 | M28: 67 | N28: 142 | O28: 127
A29: 26 | B29: أحمد يوسف جلال عوده الله(9-أ) | C29: الفيزياء | D29: 57.70731707 | E29: 63 | F29: 4 | G29: 0 | H29: 6 | I29: 7 | J29: 9 | K29: 15 | L29: 20 | M29: 78 | N29: 128 | O29: 150
A30: 27 | B30: أحمد يوسف جلال عوده الله(9-ب) | C30: الفيزياء | D30: 59.28571429 | E30: 57 | F30: 4 | G30: 5 | H30: 4 | I30: 7 | J30: 4 | K30: 18 | L30: 21 | M30: 98 | N30: 83 | O30: 136
A31: 28 | B31: أحمد يوسف جلال عوده الله(9-ج) | C31: الفيزياء | D31: 56.55813953 | E31: 56 | F31: 5 | G31: 3 | H31: 2 | I31: 6 | J31: 8 | K31: 19 | L31: 22 | M31: 74 | N31: 83 | O31: 211
A32: 29 | B32: أحمد يوسف جلال عوده الله(9-د) | C32: الفيزياء | D32: 55.79545455 | E32: 66 | F32: 3 | G32: 3 | H32: 3 | I32: 8 | J32: 12 | K32: 15 | L32: 23 | M32: 99 | N32: 65 | O32: 220
A33: 30 | B33: اسامه عبد الكريم عبد العزيز الكساسبه(5أ) | C33: التربية الاسلامية | D33: 75.76470588 | E33: 100 | F33: 8 | G33: 9 | H33: 4 | I33: 7 | J33: 6 | K33: 0 | L33: 24 | M33: 82 | N33: 109 | O33: 226
A34: 31 | B34: اسامه عبد الكريم عبد العزيز الكساسبه(5ب) | C34: التربية الاسلامية | D34: 77.03030303 | E34: 100 | F34: 9 | G34: 7 | H34: 5 | I34: 5 | J34: 7 | K34: 0 | L34: 25 | M34: 54 | N34: 97 | O34: 129
A35: 32 | B35: اسامه عبد الكريم عبد العزيز الكساسبه(5ج) | C35: التربية الاسلامية | D35: 80.03030303 | E35: 100 | F35: 15 | G35: 3 | H35: 5 | I35: 2 | J35: 8 | K35: 0 | L35: 26 | M35: 50 | N35: 187 | O35: 162
A36: 33 | B36: اسامه عبد الكريم عبد العزيز الكساسبه(5د) | C36: التربية الاسلامية | D36: 75.4 | E36: 94 | F36: 10 | G36: 10 | H36: 5 | I36: 3 | J36: 5 | K36: 2 | L36: 27 | M36: 52 | N36: 80 | O36: 175
A37: 34 | B37: اسامه عبد الكريم عبد العزيز الكساسبه(6أ) | C37: التربية الاسلامية | D37: 75.36111111 | E37: 100 | F37: 9 | G37: 5 | H37: 8 | I37: 5 | J37: 9 | K37: 0 | L37: 28 | M37: 48 | N37: 20 | O37: 150
A38: 35 | B38: اشرف جميل عواد ابو حيه(8ج) | C38: اللغة الانجليزية | D38: 93.95 | E38: 40 | F38: 2 | G38: 3 | H38: 3 | I38: 2 | J38: 6 | K38: 24 | L38: 29 | M38: 48 | N38: 119 | O38: 150
A39: 36 | B39: اشرف جميل عواد ابو حيه(8د) | C39: اللغة الانجليزية | D39: 115.2307692 | E39: 59 | F39: 7 | G39: 3 | H39: 3 | I39: 4 | J39: 6 | K39: 16 | L39: 30 | M39: 64 | N39: 80 | O39: 150
A40: 37 | B40: انس علي ابراهيم الرفايعة(5أ) | C40: التربية الرياضية | D40: 97.32352941 | E40: 100 | F40: 34 | G40: 0 | H40: 0 | I40: 0 | J40: 0 | K40: 0 | L40: 31 | M40: 52 | N40: 80 | O40: 150
A41: 38 | B41: انس علي ابراهيم الرفايعة(5ب) | C41: التربية الرياضية | D41: 97.21212121 | E41: 100 | F41: 33 | G41: 0 | H41: 0 | I41: 0 | J41: 0 | K41: 0 | L41: 32 | M41: 78 | N41: 153 | O41: 123
A42: 39 | B42: انس علي ابراهيم الرفايعة(5ج) | C42: التربية الرياضية | D42: 97.18181818 | E42: 100 | F42: 33 | G42: 0 | H42: 0 | I42: 0 | J42: 0 | K42: 0 | L42: 33 | M42: 95 | N42: 129 | O42: 213
A43: 40 | B43: انس علي ابراهيم الرفايعة(5د) | C43: التربية الرياضية | D43: 97.11428571 | E43: 100 | F43: 35 | G43: 0 | H43: 0 | I43: 0 | J43: 0 | K43: 0 | L43: 34 | M43: 80 | N43: 80 | O43: 100
A44: 41 | B44: انس علي ابراهيم الرفايعة(6أ) | C44: التربية الرياضية | D44: 97.05555556 | E44: 100 | F44: 36 | G44: 0 | H44: 0 | I44: 0 | J44: 0 | K44: 0 | L44: 35 | M44: 90 | N44: 192 | O44: 152
A45: 42 | B45: انس علي ابراهيم الرفايعة(6ب) | C45: التربية الرياضية | D45: 97.02857143 | E45: 100 | F45: 35 | G45: 0 | H45: 0 | I45: 0 | J45: 0 | K45: 0 | L45: 36 | M45: 65 | N45: 82 | O45: 130
A46: 43 | B46: انس علي ابراهيم الرفايعة(6ج) | C46: التربية الرياضية | D46: 96.74285714 | E46: 100 | F46: 35 | G46: 0 | H46: 0 | I46: 0 | J46: 0 | K46: 0 | L46: 37 | M46: 92 | N46: 80 | O46: 179
A47: 44 | B47: انس علي ابراهيم الرفايعة(6د) | C47: التربية الرياضية | D47: 96.48571429 | E47: 100 | F47: 35 | G47: 0 | H47: 0 | I47: 0 | J47: 0 | K47: 0 | L47: 38 | M47: 50 | N47: 95 | O47: 150
A48: 45 | B48: انس علي ابراهيم الرفايعة(7ج) | C48: التربية الرياضية | D48: 97.05263158 | E48: 100 | F48: 38 | G48: 0 | H48: 0 | I48: 0 | J48: 0 | K48: 0 | L48: 39 | N48: 119 | O48: 150
A49: 46 | B49: انس علي ابراهيم الرفايعة(7د) | C49: التربية الرياضية | D49: 97.02631579 | E49: 100 | F49: 38 | G49: 0 | H49: 0 | I49: 0 | J49: 0 | K49: 0 | L49: 40 | O49: 168
A50: 47 | B50: برهم حسين مسلم الفقراء(5أ) | C50: اللغة العربية(5أ) | D50: 78.29411765 | E50: 82 | F50: 15 | G50: 7 | H50: 2 | I50: 3 | J50: 1 | K50: 6 | L50: 41 | O50: 150
A51: 48 | B51: برهم حسين مسلم الفقراء(5ب) | C51: اللغة العربية(5ب) | D51: 79.90909091 | E51: 88 | F51: 15 | G51: 5 | H51: 4 | I51: 3 | J51: 2 | K51: 4 | L51: 42 | O51: 150
A52: 49 | B52: برهم حسين مسلم الفقراء(5ج) | C52: اللغة العربية(5ج) | D52: 81.48484848 | E52: 94 | F52: 16 | G52: 6 | H52: 3 | I52: 3 | J52: 3 | K52: 2 | L52: 43 | O52: 239
A53: 50 | B53: حسن مد الله علي الكعابنه(8ب) | C53: التربية الاسلامية | D53: 138.6153846 | E53: 83 | F53: 11 | G53: 6 | H53: 5 | I53: 5 | J53: 6 | K53: 6 | L53: 44
A54: 51 | B54: حسن مد الله علي الكعابنه(8ج) | C54: التربية الاسلامية | D54: 122.225 | E54: 80 | F54: 3 | G54: 4 | H54: 7 | I54: 10 | J54: 8 | K54: 8
A55: 52 | B55: حسن مد الله علي الكعابنه(8د) | C55: التربية الاسلامية | D55: 143.4358974 | E55: 80 | F55: 11 | G55: 5 | H55: 4 | I55: 8 | J55: 3 | K55: 8
A56: 53 | B56: حسن مد الله علي الكعابنه(9أ) | C56: التربية الاسلامية | D56: 126.6829268 | E56: 78 | F56: 5 | G56: 3 | H56: 8 | I56: 9 | J56: 7 | K56: 9
A57: 54 | B57: حسن مد الله علي الكعابنه(9ب) | C57: التربية الاسلامية | D57: 141.7619048 | E57: 86 | F57: 11 | G57: 3 | H57: 5 | I57: 10 | J57: 7 | K57: 6
A58: 55 | B58: حسن مد الله علي الكعابنه(9ج) | C58: التربية الاسلامية | D58: 131.1162791 | E58: 84 | F58: 8 | G58: 3 | H58: 4 | I58: 10 | J58: 11 | K58: 7
A59: 56 | B59: حسن مد الله علي الكعابنه(9د) | C59: التربية الاسلامية | D59: 116.7272727 | E59: 68 | F59: 2 | G59: 1 | H59: 6 | I59: 11 | J59: 10 | K59: 14
A60: 57 | B60: خليل محمد محمد المصري(8أ) | C60: اللغة العربية | D60: 210.2 | E60: 77.5 | F60: 7 | G60: 5 | H60: 12 | I60: 4 | J60: 3 | K60: 9
A61: 58 | B61: خليل محمد محمد المصري(8ج) | C61: اللغة العربية | D61: 162.075 | E61: 65 | F61: 1 | G61: 4 | H61: 5 | I61: 11 | J61: 5 | K61: 14
A62: 59 | B62: خليل محمد محمد المصري(8د) | C62: اللغة العربية | D62: 193.1025641 | E62: 71.79487179 | F62: 9 | G62: 7 | H62: 1 | I62: 4 | J62: 7 | K62: 11
A63: 60 | B63: رامي محمود محمد دراوشه(7أ) | C63: العلوم العامة | D63: 69.23684211 | E63: 100 | F63: 5 | G63: 7 | H63: 4 | I63: 7 | J63: 15 | K63: 0
A64: 61 | B64: رامي محمود محمد دراوشه(7ب) | C64: العلوم العامة | D64: 73.23684211 | E64: 97.36842105 | F64: 11 | G64: 4 | H64: 8 | I64: 5 | J64: 9 | K64: 1
A65: 62 | B65: رامي محمود محمد دراوشه(7د) | C65: العلوم العامة | D65: 65.68421053 | E65: 94.73684211 | F65: 3 | G65: 4 | H65: 8 | I65: 9 | J65: 12 | K65: 2
A66: 63 | B66: رامي محمود محمد دراوشه(9أ) | C66: الكيمياء | D66: 69.24390244 | E66: 95.12195122 | F66: 6 | G66: 4 | H66: 9 | I66: 12 | J66: 8 | K66: 2
A67: 64 | B67: رامي محمود محمد دراوشه(9ب) | C67: الكيمياء | D67: 71.97619048 | E67: 100 | F67: 5 | G67: 8 | H67: 7 | I67: 12 | J67: 10 | K67: 0
A68: 65 | B68: رامي محمود محمد دراوشه(9ج) | C68: الكيمياء | D68: 67.41860465 | E68: 97.6744186 | F68: 5 | G68: 5 | H68: 6 | I68: 10 | J68: 16 | K68: 1
A69: 66 | B69: رامي محمود محمد دراوشه(9د) | C69: الكيمياء | D69: 68.59090909 | E69: 97.72727273 | F69: 6 | G69: 5 | H69: 10 | I69: 8 | J69: 14 | K69: 1
A70: 67 | B70: رامي محمود محمد دراوشه (9أ) | C70: علوم الأرض والبيئة | D70: 63.6097561 | E70: 95.12195122 | F70: 3 | G70: 2 | H70: 9 | I70: 8 | J70: 17 | K70: 2
A71: 68 | B71: رامي محمود محمد دراوشه (9ب) | C71: علوم الأرض والبيئة | D71: 69.16666667 | E71: 95.23809524 | F71: 6 | G71: 8 | H71: 9 | I71: 6 | J71: 11 | K71: 2
A72: 69 | B72: رامي محمود محمد دراوشه (9ج) | C72: علوم الأرض والبيئة | D72: 70.69767442 | E72: 97.6744186 | F72: 8 | G72: 6 | H72: 5 | I72: 9 | J72: 14 | K72: 1
A73: 70 | B73: رامي محمود محمد دراوشه (9د) | C73: علوم الأرض والبيئة | D73: 67.54545455 | E73: 95.45454545 | F73: 7 | G73: 4 | H73: 6 | I73: 13 | J73: 12 | K73: 2
A74: 70 | B74: صهيب احمد فريج عثمان(7ب) | C74: اللغة العربية | D74: 66.13157895 | E74: 84.21052632 | F74: 2 | G74: 8 | H74: 7 | I74: 12 | J74: 3 | K74: 6
A75: 70 | B75: صهيب احمد فريج عثمان(7ج) | C75: اللغة العربية | D75: 64.13157895 | E75: 81.57894737 | F75: 0 | G75: 6 | H75: 9 | I75: 12 | J75: 4 | K75: 7
A76: 70 | B76: صهيب احمد فريج عثمان(7د) | C76: اللغة العربية | D76: 57 | E76: 76.31578947 | F76: 0 | G76: 3 | H76: 5 | I76: 7 | J76: 14 | K76: 9
A77: 70 | B77: طارق لافي حماد الرواشدة(6أ) | C77: اللغة العربية | D77: 67.80555556 | E77: 88.88888889 | F77: 5 | G77: 5 | H77: 7 | I77: 3 | J77: 12 | K77: 4
A78: 70 | B78: طارق لافي حماد الرواشدة(6ب) | C78: اللغة العربية | D78: 69.05714286 | E78: 88.57142857 | F78: 2 | G78: 9 | H78: 8 | I78: 4 | J78: 8 | K78: 4
A79: 70 | B79: طارق لافي حماد الرواشدة(6ج) | C79: اللغة العربية | D79: 68.6 | E79: 80 | F79: 1 | G79: 12 | H79: 8 | I79: 3 | J79: 4 | K79: 7
A80: 70 | B80: طلب عبد الله الطلب وحشه(5أ) | C80: التربية الاجتماعية و الوطنية | D80: 82.38235294 | E80: 100 | F80: 14 | G80: 7 | H80: 4 | I80: 6 | J80: 3 | K80: 0
A81: 70 | B81: طلب عبد الله الطلب وحشه(5ب) | C81: التربية الاجتماعية و الوطنية | D81: 81.45454545 | E81: 100 | F81: 15 | G81: 6 | H81: 4 | I81: 2 | J81: 6 | K81: 0
A82: 70 | B82: طلب عبد الله الطلب وحشه(6أ) | C82: التربية الوطنية و المدنية | D82: 63.94444444 | E82: 100 | F82: 4 | G82: 4 | H82: 6 | I82: 3 | J82: 19 | K82: 0
A83: 70 | B83: طلب عبد الله الطلب وحشه(6ب) | C83: التربية الوطنية و المدنية | D83: 65.42857143 | E83: 97.14285714 | F83: 2 | G83: 3 | H83: 10 | I83: 5 | J83: 14 | K83: 1
A84: 70 | B84: طلب عبد الله الطلب وحشه(6ج) | C84: التربية الوطنية و المدنية | D84: 69.6 | E84: 97.14285714 | F84: 5 | G84: 9 | H84: 5 | I84: 4 | J84: 11 | K84: 1
A85: 70 | B85: طلب عبد الله الطلب وحشه(6ج) | C85: التربية الوطنية و المدنية | D85: 69.08823529 | E85: 97.05882353 | F85: 5 | G85: 8 | H85: 5 | I85: 4 | J85: 11 | K85: 1
A86: 70 | B86: طلب عبد الله الطلب وحشه(6د) | C86: التربية الوطنية و المدنية | D86: 74.31428571 | E86: 100 | F86: 10 | G86: 5 | H86: 5 | I86: 4 | J86: 11 | K86: 0
A87: 70 | B87: طلب عبد الله الطلب وحشه(7أ) | C87: التربية الوطنية و المدنية | D87: 66 | E87: 100 | F87: 4 | G87: 6 | H87: 3 | I87: 8 | J87: 17 | K87: 0
A88: 70 | B88: طلب عبد الله الطلب وحشه(7ب) | C88: التربية الوطنية و المدنية | D88: 75.02631579 | E88: 97.36842105 | F88: 13 | G88: 4 | H88: 6 | I88: 4 | J88: 10 | K88: 1
A89: 70 | B89: طلب عبد الله الطلب وحشه (7ج) | C89: التربية الوطنية و المدنية | D89: 67.13157895 | E89: 100 | F89: 6 | G89: 2 | H89: 7 | I89: 7 | J89: 16 | K89: 0
A90: 70 | B90: طلب عبد الله الطلب وحشه(7د) | C90: التربية الوطنية و المدنية | D90: 64.39473684 | E90: 100 | F90: 3 | G90: 1 | H90: 6 | I90: 11 | J90: 17 | K90: 0
A91: 70 | B91: طلب عبد الله الطلب وحشه(8أ) | C91: التربية الوطنية و المدنية | D91: 78.925 | E91: 100 | F91: 20 | G91: 2 | H91: 3 | I91: 3 | J91: 12 | K91: 0
A92: 70 | B92: طلب عبد الله الطلب وحشه(8ب) | C92: التربية الوطنية و المدنية | D92: 67.53846154 | E92: 92.30769231 | F92: 11 | G92: 4 | H92: 3 | I92: 4 | J92: 14 | K92: 3
A93: 70 | B93: طلب عبد الله الطلب وحشه(8ج) | C93: التربية الوطنية و المدنية | D93: 59.225 | E93: 90 | F93: 3 | G93: 3 | H93: 7 | I93: 7 | J93: 16 | K93: 4
A94: 70 | B94: طلب عبد الله الطلب وحشه(8د) | C94: التربية الوطنية و المدنية | D94: 68.23076923 | E94: 94.87179487 | F94: 11 | G94: 2 | H94: 7 | I94: 1 | J94: 16 | K94: 2
A95: 70 | B95: طلب عبد الله الطلب وحشه(9أ) | C95: التربية الوطنية و المدنية | D95: 76.87804878 | E95: 97.56097561 | F95: 14 | G95: 9 | H95: 3 | I95: 6 | J95: 8 | K95: 1
A96: 70 | B96: طلب عبد الله الطلب وحشه(9ب) | C96: التربية الوطنية و المدنية | D96: 81.80952381 | E96: 100 | F96: 21 | G96: 3 | H96: 7 | I96: 4 | J96: 7 | K96: 0
A97: 70 | B97: طلب عبد الله الطلب وحشه(9ج) | C97: التربية الوطنية و المدنية | D97: 70.3255814 | E97: 97.6744186 | F97: 10 | G97: 6 | H97: 6 | I97: 6 | J97: 14 | K97: 1
A98: 70 | B98: طلب عبد الله الطلب وحشه(9د) | C98: التربية الوطنية و المدنية | D98: 65 | E98: 100 | F98: 6 | G98: 0 | H98: 7 | I98: 8 | J98: 23 | K98: 0
A99: 70 | B99: طه ذيب محمد القريني(5أ) | C99: التربية الاجتماعية و الوطنية | D99: 82.38235294 | E99: 100 | F99: 14 | G99: 7 | H99: 4 | I99: 6 | J99: 3 | K99: 0
A100: 70 | B100: طه ذيب محمد القريني(6أ) | C100: الجغرافيا | D100: 66.66666667 | E100: 77.77777778 | F100: 7 | G100: 4 | H100: 4 | I100: 9 | J100: 4 | K100: 8
A101: 70 | B101: طه ذيب محمد القريني(6ب) | C101: الجغرافيا | D101: 67.2 | E101: 80 | F101: 4 | G101: 7 | H101: 8 | I101: 2 | J101: 7 | K101: 7
A102: 70 | B102: طه ذيب محمد القريني(6ج) | C102: الجغرافيا | D102: 65.71428571 | E102: 74.28571429 | F102: 8 | G102: 4 | H102: 8 | I102: 1 | J102: 5 | K102: 9
A103: 70 | B103: طه ذيب محمد القريني(6د) | C103: الجغرافيا | D103: 78.54285714 | E103: 100 | F103: 12 | G103: 7 | H103: 5 | I103: 4 | J103: 7 | K103: 0
A104: 70 | B104: طه ذيب محمد القريني(7أ) | C104: الجغرافيا | D104: 69.05263158 | E104: 100 | F104: 3 | G104: 11 | H104: 5 | I104: 3 | J104: 16 | K104: 0
A105: 70 | B105: طه ذيب محمد القريني(7ب) | C105: الجغرافيا | D105: 71.78947368 | E105: 92.10526316 | F105: 10 | G105: 6 | H105: 7 | I105: 8 | J105: 4 | K105: 3
A106: 70 | B106: طه ذيب محمد القريني(7ج) | C106: الجغرافيا | D106: 66.26315789 | E106: 78.94736842 | F106: 2 | G106: 10 | H106: 10 | I106: 1 | J106: 7 | K106: 8
A107: 70 | B107: طه ذيب محمد القريني(7د) | C107: الجغرافيا | D107: 0 | E107: 0 | F107: 0 | G107: 0 | H107: 0 | I107: 0 | J107: 0 | K107: 0
A108: 70 | B108: طه ذيب محمد القريني(8أ) | C108: الجغرافيا | D108: 84.375 | E108: 100 | F108: 18 | G108: 11 | H108: 3 | I108: 7 | J108: 1 | K108: 0
A109: 70 | B109: طه ذيب محمد القريني(8ب) | C109: الجغرافيا | D109: 73.35897436 | E109: 94.87179487 | F109: 6 | G109: 13 | H109: 6 | I109: 7 | J109: 5 | K109: 2
A110: 70 | B110: طه ذيب محمد القريني(8ج) | C110: الجغرافيا | D110: 70.65 | E110: 92.5 | F110: 7 | G110: 9 | H110: 11 | I110: 4 | J110: 6 | K110: 3
A111: 70 | B111: طه ذيب محمد القريني(8د) | C111: الجغرافيا | D111: 71.23076923 | E111: 92.30769231 | F111: 6 | G111: 7 | H111: 9 | I111: 8 | J111: 6 | K111: 3
A112: 70 | B112: طه ذيب محمد القريني(9أ) | C112: الجغرافيا | D112: 83.6097561 | E112: 97.56097561 | F112: 17 | G112: 13 | H112: 7 | I112: 3 | J112: 0 | K112: 1
A113: 70 | B113: طه ذيب محمد القريني(9ب) | C113: الجغرافيا | D113: 81.80952381 | E113: 97.61904762 | F113: 13 | G113: 14 | H113: 10 | I113: 1 | J113: 3 | K113: 1
A114: 70 | B114: طه ذيب محمد القريني(9ج) | C114: الجغرافيا | D114: 82.81395349 | E114: 97.6744186 | F114: 15 | G114: 18 | H114: 5 | I114: 4 | J114: 0 | K114: 1
A115: 70 | B115: طه ذيب محمد القريني(9د) | C115: الجغرافيا | D115: 75.27272727 | E115: 95.45454545 | F115: 6 | G115: 17 | H115: 8 | I115: 10 | J115: 1 | K115: 2
A116: 70 | B116: علي هليل محمد البريزات(5د) | C116: اللغة العربية | D116: 84.22857143 | E116: 97.14285714 | F116: 21 | G116: 6 | H116: 3 | I116: 0 | J116: 4 | K116: 1
A117: 70 | B117: علي هليل محمد البريزات(6ج) | C117: اللغة العربية | D117: 68.6 | E117: 80 | F117: 1 | G117: 12 | H117: 8 | I117: 3 | J117: 4 | K117: 7
A118: 70 | B118: علي هليل محمد البريزات(7أ) | C118: اللغة العربية | D118: 82.52631579 | E118: 100 | F118: 13 | G118: 13 | H118: 8 | I118: 1 | J118: 3 | K118: 0
A119: 70 | B119: محمد جميل عبدالقادر السعافين(7أ) | C119: الرياضيات | D119: 63.71052632 | E119: 76.31578947 | F119: 5 | G119: 2 | H119: 4 | I119: 7 | J119: 11 | K119: 9
A120: 70 | B120: محمد جميل عبدالقادر السعافين(7ب) | C120: الرياضيات | D120: 69.28947368 | E120: 92.10526316 | F120: 7 | G120: 4 | H120: 9 | I120: 6 | J120: 9 | K120: 3
A121: 70 | B121: محمد شاكر احمد الصدر(7أ) | C121: التربية الرياضية | D121: 94.57894737 | E121: 100 | F121: 38 | G121: 0 | H121: 0 | I121: 0 | J121: 0 | K121: 0
A122: 70 | B122: محمد شاكر احمد الصدر(7ب) | C122: التربية الرياضية | D122: 93.73684211 | E122: 97.36842105 | F122: 37 | G122: 0 | H122: 0 | I122: 0 | J122: 0 | K122: 1
A123: 70 | B123: محمد شاكر احمد الصدر(8أ) | C123: التربية الرياضية | D123: 95.1 | E123: 100 | F123: 40 | G123: 0 | H123: 0 | I123: 0 | J123: 0 | K123: 0
A124: 70 | B124: محمد شاكر احمد الصدر(8ب) | C124: التربية الرياضية | D124: 88.41025641 | E124: 92.30769231 | F124: 35 | G124: 0 | H124: 1 | I124: 0 | J124: 0 | K124: 3
A125: 70 | B125: محمد شاكر احمد الصدر(8ج) | C125: التربية الرياضية | D125: 87.6 | E125: 92.5 | F125: 37 | G125: 0 | H125: 0 | I125: 0 | J125: 0 | K125: 3
A126: 70 | B126: محمد شاكر احمد الصدر(8د) | C126: التربية الرياضية | D126: 89.97435897 | E126: 94.87179487 | F126: 37 | G126: 0 | H126: 0 | I126: 0 | J126: 0 | K126: 2
A127: 70 | B127: محمد شاكر احمد الصدر(9أ) | C127: التربية الرياضية | D127: 92.36585366 | E127: 97.56097561 | F127: 40 | G127: 0 | H127: 0 | I127: 0 | J127: 0 | K127: 1
A128: 70 | B128: محمد شاكر احمد الصدر(9ب) | C128: التربية الرياضية | D128: 94.28571429 | E128: 100 | F128: 42 | G128: 0 | H128: 0 | I128: 0 | J128: 0 | K128: 0
A129: 70 | B129: محمد شاكر احمد الصدر(9ج) | C129: التربية الرياضية | D129: 92.65116279 | E129: 97.6744186 | F129: 42 | G129: 0 | H129: 0 | I129: 0 | J129: 0 | K129: 1
A130: 70 | B130: محمد شاكر احمد الصدر(9د) | C130: التربية الرياضية | D130: 92.68181818 | E130: 97.72727273 | F130: 43 | G130: 0 | H130: 0 | I130: 0 | J130: 0 | K130: 1
A131: 70 | B131: محمد عبد الكريم سلمان الشقيرات(9أ) | C131: اللغة العربية | D131: 150.3658537 | E131: 56.09756098 | F131: 0 | G131: 3 | H131: 2 | I131: 3 | J131: 15 | K131: 18
A132: 70 | B132: محمد عبد الكريم سلمان الشقيرات(9ب) | C132: اللغة العربية | D132: 155.9285714 | E132: 59.52380952 | F132: 1 | G132: 1 | H132: 4 | I132: 4 | J132: 15 | K132: 17
A133: 70 | B133: محمد عبد الكريم سلمان الشقيرات(9ج) | C133: اللغة العربية | D133: 158.6046512 | E133: 69.76744186 | F133: 0 | G133: 1 | H133: 6 | I133: 4 | J133: 19 | K133: 13
A134: 70 | B134: محمد عبد الكريم سلمان الشقيرات(9د) | C134: اللغة العربية | D134: 145.3409091 | E134: 52.27272727 | F134: 0 | G134: 0 | H134: 3 | I134: 5 | J134: 15 | K134: 21
A135: 70 | B135: محمد عدنان محمد عوض(6ج) | C135: التربية الاسلامية | D135: 76.22857143 | E135: 97.14285714 | F135: 13 | G135: 6 | H135: 7 | I135: 1 | J135: 7 | K135: 1
A136: 70 | B136: محمد عدنان محمد عوض(6د) | C136: التربية الاسلامية | D136: 84.37142857 | E136: 100 | F136: 14 | G136: 12 | H136: 4 | I136: 3 | J136: 2 | K136: 0
A137: 70 | B137: محمد عدنان محمد عوض(8أ) | C137: التربية الاسلامية | D137: 154.35 | E137: 97.5 | F137: 13 | G137: 7 | H137: 7 | I137: 8 | J137: 4 | K137: 1
A138: 70 | B138: محمد عدنان محمد عوض(7أ) | C138: التربية الاسلامية | D138: 80.23684211 | E138: 100 | F138: 11 | G138: 11 | H138: 8 | I138: 8 | J138: 0 | K138: 0
A139: 70 | B139: محمد عدنان محمد عوض(7ب) | C139: التربية الاسلامية | D139: 78.26315789 | E139: 94.73684211 | F139: 14 | G139: 8 | H139: 9 | I139: 3 | J139: 2 | K139: 2
A140: 70 | B140: محمد عدنان محمد عوض(7ج) | C140: التربية الاسلامية | D140: 83.26315789 | E140: 100 | F140: 18 | G140: 8 | H140: 4 | I140: 7 | J140: 1 | K140: 0
A141: 70 | B141: محمد عدنان محمد عوض(7د) | C141: التربية الاسلامية | D141: 58.05263158 | E141: 76.31578947 | F141: 0 | G141: 4 | H141: 5 | I141: 7 | J141: 13 | K141: 9
A142: 70 | B142: محمد علي محمد الشطناوي(5أ) | C142: اللغة الانجليزية | D142: 63.17647059 | E142: 58.82352941 | F142: 2 | G142: 6 | H142: 7 | I142: 3 | J142: 2 | K142: 14
A143: 70 | B143: محمد علي محمد الشطناوي(5ب) | C143: اللغة الانجليزية | D143: 60.87878788 | E143: 66.66666667 | F143: 6 | G143: 2 | H143: 4 | I143: 2 | J143: 8 | K143: 11
A144: 70 | B144: محمد علي محمد الشطناوي(5ج) | C144: اللغة الانجليزية | D144: 65.51515152 | E144: 75.75757576 | F144: 5 | G144: 7 | H144: 1 | I144: 1 | J144: 11 | K144: 8
A145: 70 | B145: محمد علي محمد الشطناوي(5د) | C145: اللغة الانجليزية | D145: 59.05714286 | E145: 80 | F145: 2 | G145: 3 | H145: 5 | I145: 6 | J145: 12 | K145: 7
A146: 70 | B146: معتصم عوني فايز عبيدات(7أ) | C146: التربية المهنية | D146: 86.5 | E146: 100 | F146: 14 | G146: 17 | H146: 6 | I146: 1 | J146: 0 | K146: 0
A147: 70 | B147: معتصم عوني فايز عبيدات(7ب) | C147: التربية المهنية | D147: 84.44736842 | E147: 97.36842105 | F147: 19 | G147: 13 | H147: 2 | I147: 2 | J147: 1 | K147: 1
A148: 70 | B148: معتصم عوني فايز عبيدات(8أ) | C148: التربية المهنية | D148: 84.275 | E148: 100 | F148: 12 | G148: 16 | H148: 9 | I148: 3 | J148: 0 | K148: 0
A149: 70 | B149: معتصم عوني فايز عبيدات(8ب) | C149: التربية المهنية | D149: 79.05128205 | E149: 92.30769231 | F149: 16 | G149: 9 | H149: 8 | I149: 2 | J149: 1 | K149: 3
A150: 70 | B150: معتصم عوني فايز عبيدات(8ج) | C150: التربية المهنية | D150: 75.425 | E150: 92.5 | F150: 11 | G150: 14 | H150: 4 | I150: 4 | J150: 4 | K150: 3
A151: 70 | B151: معتصم عوني فايز عبيدات(8د) | C151: التربية المهنية | D151: 81.79487179 | E151: 94.87179487 | F151: 21 | G151: 3 | H151: 8 | I151: 4 | J151: 1 | K151: 2
A152: 70 | B152: معتصم عوني فايز عبيدات(9أ) | C152: التربية المهنية | D152: 71.95121951 | E152: 97.56097561 | F152: 7 | G152: 5 | H152: 14 | I152: 7 | J152: 7 | K152: 1
A153: 70 | B153: معتصم عوني فايز عبيدات(9ب) | C153: التربية المهنية | D153: 83.54761905 | E153: 100 | F153: 17 | G153: 12 | H153: 9 | I153: 1 | J153: 3 | K153: 0
A154: 70 | B154: معتصم عوني فايز عبيدات(9ج) | C154: التربية المهنية | D154: 68.44186047 | E154: 97.6744186 | F154: 7 | G154: 3 | H154: 10 | I154: 10 | J154: 12 | K154: 1
A155: 70 | B155: معتصم عوني فايز عبيدات(9د) | C155: التربية المهنية | D155: 65.43181818 | E155: 97.72727273 | F155: 4 | G155: 5 | H155: 5 | I155: 15 | J155: 14 | K155: 1
A156: 70 | B156: منذر توفيق فايز حماد(7أ) | C156: ثقافة مالية | D156: 69.39473684 | E156: 100 | F156: 7 | G156: 3 | H156: 6 | I156: 11 | J156: 11 | K156: 0
A157: 70 | B157: منذر توفيق فايز حماد (7أ) | C157: حاسوب | D157: 66.13157895 | E157: 100 | F157: 6 | G157: 2 | H157: 6 | I157: 7 | J157: 17 | K157: 0
A158: 70 | B158: منذر توفيق فايز حماد(7ب) | C158: ثقافة مالية | D158: 71.44736842 | E158: 89.47368421 | F158: 11 | G158: 7 | H158: 4 | I158: 4 | J158: 8 | K158: 4
A159: 70 | B159: منذر توفيق فايز حماد (7ب) | C159: حاسوب | D159: 69.63157895 | E159: 89.47368421 | F159: 9 | G159: 5 | H159: 6 | I159: 9 | J159: 5 | K159: 4
A160: 70 | B160: منذر توفيق فايز حماد(7ج) | C160: ثقافة مالية | D160: 72.5 | E160: 84.21052632 | F160: 9 | G160: 9 | H160: 6 | I160: 2 | J160: 6 | K160: 6
A161: 70 | B161: منذر توفيق فايز حماد (7ج) | C161: حاسوب | D161: 66.28947368 | E161: 86.84210526 | F161: 2 | G161: 5 | H161: 10 | I161: 9 | J161: 7 | K161: 5
A162: 70 | B162: منذر توفيق فايز حماد(7د) | C162: ثقافة مالية | D162: 61.23684211 | E162: 81.57894737 | F162: 3 | G162: 4 | H162: 4 | I162: 4 | J162: 16 | K162: 7
A163: 70 | B163: منذر توفيق فايز حماد (7د) | C163: حاسوب | D163: 61.5 | E163: 89.47368421 | F163: 1 | G163: 3 | H163: 6 | I163: 8 | J163: 16 | K163: 4
A164: 70 | B164: منذر توفيق فايز حماد(8أ) | C164: ثقافة مالية | D164: 73.525 | E164: 95 | F164: 11 | G164: 2 | H164: 9 | I164: 10 | J164: 6 | K164: 2
A165: 70 | B165: منذر توفيق فايز حماد (8أ) | C165: حاسوب | D165: 67.075 | E165: 87.5 | F165: 8 | G165: 4 | H165: 1 | I165: 9 | J165: 13 | K165: 5
A166: 70 | B166: منذر توفيق فايز حماد(8ب) | C166: ثقافة مالية | D166: 64.30769231 | E166: 76.92307692 | F166: 7 | G166: 6 | H166: 6 | I166: 4 | J166: 7 | K166: 9
A167: 70 | B167: منذر توفيق فايز حماد (8ب) | C167: حاسوب | D167: 59.17948718 | E167: 79.48717949 | F167: 3 | G167: 3 | H167: 6 | I167: 4 | J167: 15 | K167: 8
A168: 70 | B168: منذر توفيق فايز حماد(8ج) | C168: ثقافة مالية | D168: 61.425 | E168: 75 | F168: 7 | G168: 3 | H168: 4 | I168: 8 | J168: 8 | K168: 10
A169: 70 | B169: منذر توفيق فايز حماد (8ج) | C169: حاسوب | D169: 52.475 | E169: 57.5 | F169: 2 | G169: 4 | H169: 2 | I169: 5 | J169: 10 | K169: 17
A170: 70 | B170: منذر توفيق فايز حماد(8د) | C170: ثقافة مالية | D170: 65.56410256 | E170: 74.35897436 | F170: 12 | G170: 3 | H170: 3 | I170: 2 | J170: 9 | K170: 10
A171: 70 | B171: منذر توفيق فايز حماد (8د) | C171: حاسوب | D171: 62.41025641 | E171: 74.35897436 | F171: 7 | G171: 4 | H171: 3 | I171: 5 | J171: 10 | K171: 10
A172: 70 | B172: منذر توفيق فايز حماد(9أ) | C172: ثقافة مالية | D172: 67.82926829 | E172: 87.80487805 | F172: 7 | G172: 6 | H172: 8 | I172: 8 | J172: 7 | K172: 5
A173: 70 | B173: منذر توفيق فايز حماد (9أ) | C173: حاسوب | D173: 67.43902439 | E173: 87.80487805 | F173: 5 | G173: 8 | H173: 7 | I173: 7 | J173: 9 | K173: 5
A174: 70 | B174: منذر توفيق فايز حماد(9ب) | C174: ثقافة مالية | D174: 66.71428571 | E174: 83.33333333 | F174: 8 | G174: 3 | H174: 9 | I174: 5 | J174: 10 | K174: 7
A175: 70 | B175: منذر توفيق فايز حماد (9ب) | C175: حاسوب | D175: 65.52380952 | E175: 85.71428571 | F175: 8 | G175: 4 | H175: 6 | I175: 3 | J175: 15 | K175: 6
A176: 70 | B176: منذر توفيق فايز حماد(9ج) | C176: ثقافة مالية | D176: 62.60465116 | E176: 83.72093023 | F176: 2 | G176: 8 | H176: 7 | I176: 7 | J176: 12 | K176: 7
A177: 70 | B177: منذر توفيق فايز حماد (9ج) | C177: حاسوب | D177: 63.60465116 | E177: 83.72093023 | F177: 4 | G177: 8 | H177: 6 | I177: 4 | J177: 14 | K177: 7
A178: 70 | B178: منذر توفيق فايز حماد(9د) | C178: ثقافة مالية | D178: 62 | E178: 79.54545455 | F178: 3 | G178: 5 | H178: 9 | I178: 5 | J178: 13 | K178: 9
A179: 70 | B179: منذر توفيق فايز حماد (9د) | C179: حاسوب | D179: 63.72727273 | E179: 79.54545455 | F179: 2 | G179: 11 | H179: 6 | I179: 7 | J179: 9 | K179: 9
A180: 70 | B180: منذر ناصر عثمان الدويك(9أ) | C180: الرياضيات | D180: 99.48780488 | E180: 53.65853659 | F180: 1 | G180: 2 | H180: 4 | I180: 3 | J180: 12 | K180: 19 | M180: =SUM(M10:M154) -> 2867 | N180: =SUM(N10:N154) -> 4464
A181: 70 | B181: منذر ناصر عثمان الدويك(9ب) | C181: الرياضيات | D181: 103.6666667 | E181: 47.61904762 | F181: 1 | G181: 3 | H181: 2 | I181: 7 | J181: 7 | K181: 22
A182: 70 | B182: منذر ناصر عثمان الدويك(9ج) | C182: الرياضيات | D182: 100.0232558 | E182: 60.46511628 | F182: 0 | G182: 3 | H182: 3 | I182: 7 | J182: 13 | K182: 17
A183: 70 | B183: منذر ناصر عثمان الدويك(9د) | C183: الرياضيات | D183: 102.1136364 | E183: 68.18181818 | F183: 1 | G183: 2 | H183: 2 | I183: 4 | J183: 21 | K183: 14
A184: 70 | B184: منير يحيى مصطفى الصياح(5أ) | C184: التربية الفنية | D184: 95.08823529 | E184: 100 | F184: 34 | G184: 0 | H184: 0 | I184: 0 | J184: 0 | K184: 0
A185: 70 | B185: منير يحيى مصطفى الصياح(5ب) | C185: التربية الفنية | D185: 94.96969697 | E185: 100 | F185: 33 | G185: 0 | H185: 0 | I185: 0 | J185: 0 | K185: 0
A186: 70 | B186: منير يحيى مصطفى الصياح(5ج) | C186: التربية الفنية | D186: 95.06060606 | E186: 100 | F186: 33 | G186: 0 | H186: 0 | I186: 0 | J186: 0 | K186: 0
A187: 70 | B187: منير يحيى مصطفى الصياح(5د) | C187: التربية الفنية | D187: 95.14285714 | E187: 100 | F187: 35 | G187: 0 | H187: 0 | I187: 0 | J187: 0 | K187: 0
A188: 70 | B188: منير يحيى مصطفى الصياح(6أ) | C188: التربية الفنية | D188: 94.36111111 | E188: 100 | F188: 36 | G188: 0 | H188: 0 | I188: 0 | J188: 0 | K188: 0
A189: 70 | B189: منير يحيى مصطفى الصياح(6ب) | C189: التربية الفنية | D189: 94.65714286 | E189: 100 | F189: 35 | G189: 0 | H189: 0 | I189: 0 | J189: 0 | K189: 0
A190: 70 | B190: منير يحيى مصطفى الصياح(6ج) | C190: التربية الفنية | D190: 93.28571429 | E190: 100 | F190: 34 | G190: 0 | H190: 0 | I190: 0 | J190: 1 | K190: 0
A191: 70 | B191: منير يحيى مصطفى الصياح(6د) | C191: التربية الفنية | D191: 94.48571429 | E191: 100 | F191: 35 | G191: 0 | H191: 0 | I191: 0 | J191: 0 | K191: 0
A192: 70 | B192: منير يحيى مصطفى الصياح(7أ) | C192: التربية الفنية | D192: 94.23684211 | E192: 100 | F192: 38 | G192: 0 | H192: 0 | I192: 0 | J192: 0 | K192: 0
A193: 70 | B193: منير يحيى مصطفى الصياح(7ب) | C193: التربية الفنية | D193: 92.86842105 | E193: 97.36842105 | F193: 37 | G193: 0 | H193: 0 | I193: 0 | J193: 0 | K193: 1
A194: 70 | B194: منير يحيى مصطفى الصياح(7ج) | C194: التربية الفنية | D194: 94.15789474 | E194: 100 | F194: 38 | G194: 0 | H194: 0 | I194: 0 | J194: 0 | K194: 0
A195: 70 | B195: منير يحيى مصطفى الصياح(7د) | C195: التربية الفنية | D195: 94.52631579 | E195: 100 | F195: 38 | G195: 0 | H195: 0 | I195: 0 | J195: 0 | K195: 0
A196: 70 | B196: منير يحيى مصطفى الصياح(8أ) | C196: التربية الفنية | D196: 93.775 | E196: 100 | F196: 40 | G196: 0 | H196: 0 | I196: 0 | J196: 0 | K196: 0
A197: 70 | B197: منير يحيى مصطفى الصياح(8ب) | C197: التربية الفنية | D197: 93.71794872 | E197: 100 | F197: 39 | G197: 0 | H197: 0 | I197: 0 | J197: 0 | K197: 0
A198: 70 | B198: منير يحيى مصطفى الصياح(8ج) | C198: التربية الفنية | D198: 94.4 | E198: 100 | F198: 40 | G198: 0 | H198: 0 | I198: 0 | J198: 0 | K198: 0
A199: 70 | B199: منير يحيى مصطفى الصياح(8د) | C199: التربية الفنية | D199: 94.1025641 | E199: 100 | F199: 39 | G199: 0 | H199: 0 | I199: 0 | J199: 0 | K199: 0
A200: 70 | B200: منير يحيى مصطفى الصياح(9أ) | C200: التربية الفنية | D200: 94.07317073 | E200: 100 | F200: 41 | G200: 0 | H200: 0 | I200: 0 | J200: 0 | K200: 0
A201: 70 | B201: منير يحيى مصطفى الصياح(9ب) | C201: التربية الفنية | D201: 94.21428571 | E201: 100 | F201: 42 | G201: 0 | H201: 0 | I201: 0 | J201: 0 | K201: 0
A202: 70 | B202: منير يحيى مصطفى الصياح(9ج) | C202: التربية الفنية | D202: 94.3255814 | E202: 100 | F202: 43 | G202: 0 | H202: 0 | I202: 0 | J202: 0 | K202: 0
... 31 more rows

Sheet النتائج
B2: المدرسة | D2: اسم الطالب | F2: الصف | G2: عربي(2018) 1 | H2: عربي(2018) 2 | I2: عربي(2019) 1 | J2: عربي(2019) 2 | K2: انجليزي(2018) 1 | L2: انجليزي(2018) 2 | M2: انجليزي(2019) 1 | N2: انجليزي(2019) 2 | O2: رياضيات(2017/2018) 1 | P2: رياضيات(2017/2018) 2 | Q2: رياضيات(2018/2019) 1 | R2: رياضيات(2018/2019) 2 | S2: العلوم(2017/2018) 1 | T2: العلوم(2017/2018) 2 | U2: العلوم(2018/2019) 1 | V2: العلوم(2018/2019) 2 | W2: اسلامية(2017/2018) 1 | X2: اسلامية(2017/2018) 2 | Y2: اسلامية(2018/2019) 1 | Z2: اسلامية(2018/2019) 2 | AA2: فيزياء(2018/2019) 1 | AB2: فيزياء(2018/2019) 2 | AC2: كيمياء(2018/2019) 1 | AD2: كيمياء(2018/2019) 2 | AE2: أحياء(2018/2019) 1 | AF2: أحياء(2018/2019) 1 | AG2: علوم أرض(2018/2019)1 | AH2: علوم أرض(2018/2019) 2
B3: المدرسة الاساسية للبنين | D3: ماجد محمود عبد الرؤوف العبادي | F3: =IFERROR(VLOOKUP($D$3,Sheet1!$B$4:$AE$757,2,FALSE),"") -> خامس ج | G3: =VLOOKUP($D$3,Sheet1!$B$4:$AE$757,3,FALSE) -> 0 | H3: =VLOOKUP($D$3,Sheet1!$B$4:$AE$757,4,FALSE) -> 0 | I3: =VLOOKUP($D$3,Sheet1!$B$4:$AE$757,5,FALSE) -> 1 | J3: =VLOOKUP($D$3,Sheet1!$B$4:$AE$757,6,FALSE) -> 0 | K3: =VLOOKUP($D$3,Sheet1!$B$4:$AE$757,7,FALSE) -> 0 | L3: =VLOOKUP($D$3,Sheet1!$B$4:$AE$757,8,FALSE) -> 0 | M3: =VLOOKUP($D$3,Sheet1!$B$4:$AE$757,9,FALSE) -> 18 | N3: =VLOOKUP($D$3,Sheet1!$B$4:$AE$757,10,FALSE) -> 0 | O3: =VLOOKUP($D$3,Sheet1!$B$4:$AE$757,11,FALSE) -> 0 | P3: =VLOOKUP($D$3,Sheet1!$B$4:$AE$757,12,FALSE) -> 0 | Q3: =VLOOKUP($D$3,Sheet1!$B$4:$AE$757,13,FALSE) -> 15 | R3: =VLOOKUP($D$3,Sheet1!$B$4:$AE$757,14,FALSE) -> 0 | S3: =VLOOKUP($D$3,Sheet1!$B$4:$AF$757,15,FALSE) -> 0 | T3: =VLOOKUP($D$3,Sheet1!$B$4:$AF$757,16,FALSE) -> 0 | U3: =VLOOKUP($D$3,Sheet1!$B$4:$AF$757,17,FALSE) -> 31 | V3: =VLOOKUP($D$3,Sheet1!$B$4:$AF$757,18,FALSE) -> 0 | W3: =VLOOKUP($D$3,Sheet1!$B$4:$AF$757,19,FALSE) -> 0 | X3: =VLOOKUP($D$3,Sheet1!$B$4:$AF$757,20,FALSE) -> 0 | Y3: =VLOOKUP($D$3,Sheet1!$B$4:$AF$757,21,FALSE) -> 23 | Z3: =VLOOKUP($D$3,Sheet1!$B$4:$AF$757,22,FALSE) -> 0 | AA3: =VLOOKUP($D$3,Sheet1!$B$4:$AF$757,23,FALSE) -> 0 | AB3: =VLOOKUP($D$3,Sheet1!$B$4:$AF$757,24,FALSE) -> 0 | AC3: =VLOOKUP($D$3,Sheet1!$B$4:$AF$757,25,FALSE) -> 0 | AD3: =VLOOKUP($D$3,Sheet1!$B$4:$AF$757,26,FALSE) -> 0 | AE3: =VLOOKUP($D$3,Sheet1!$B$4:$AF$757,27,FALSE) -> 0 | AF3: =VLOOKUP($D$3,Sheet1!$B$4:$AF$757,28,FALSE) -> 0 | AG3: =VLOOKUP($D$3,Sheet1!$B$4:$AF$757,29,FALSE) -> 0 | AH3: =VLOOKUP($D$3,Sheet1!$B$4:$AF$757,30,FALSE) -> 0

Sheet Sheet1
A3: الرقم | B3: الاسم | C3: الصف والشعبة | D3: عربي(2018) 1 | E3: عربي(2018) 2 | F3: عربي(2019) 1 | G3: عربي(2019) 2 | H3: انجليزي(2018) 1 | I3: انجليزي(2018) 2 | J3: انجليزي(2019) 1 | K3: انجليزي(2019) 2 | L3: رياضيات(2017/2018) 1 | M3: رياضيات(2017/2018) 2 | N3: رياضيات(2018/2019) 1 | O3: رياضيات(2018/2019) 2 | P3: العلوم(2017/2018) 1 | Q3: العلوم(2017/2018) 2 | R3: العلوم(2018/2019) 1 | S3: العلوم(2018/2019) 2 | T3: اسلامية(2017/2018) 1 | U3: اسلامية(2017/2018) 2 | V3: اسلامية(2018/2019) 1 | W3: اسلامية(2018/2019) 2 | X3: فيزياء(2018/2019) 1 | Y3: فيزياء(2018/2019) 2 | Z3: كيمياء(2018/2019) 1 | AA3: كيمياء(2018/2019) 2 | AB3: أحياء(2018/2019) 1 | AC3: أحياء(2017/2018) 1 | AD3: علوم أرض(2018/2019)1 | AE3: علوم أرض(2018/2019) 2
A4: 1 | B4: احمد محرم فريد سليمان | C4: خامس أ | F4: 21 | J4: 23 | N4: 24 | O4: 12 | R4: 22 | S4: 14 | V4: 14
A5: 2 | B5: ادم احمد راتب محمد | C5: خامس أ | F5: 22 | J5: 14 | N5: 1 | O5: 15 | R5: 13 | S5: 20 | V5: 1
A6: 3 | B6: اسحق محمد اسحق العسال | C6: خامس أ | F6: 18 | J6: 23 | N6: 19 | O6: 10 | R6: 22 | S6: 17 | V6: 17
A7: 4 | B7: ايمن محمد احمد الطرايره | C7: خامس أ | F7: 30 | J7: 17 | N7: 31 | O7: 15 | R7: 28 | S7: 8 | V7: 21
A8: 5 | B8: أحمد عماد خالد العساف | C8: خامس أ | F8: 1 | J8: 17 | N8: 1 | O8: 17 | R8: 1 | S8: 20 | V8: 21
A9: 6 | B9: جهاد ايمن جهاد الجزازي | C9: خامس أ | F9: 12 | J9: 11 | N9: 10 | O9: 17 | R9: 13 | S9: 13 | V9: 21
A10: 7 | B10: زيد محمد محمود البيطار | C10: خامس أ | F10: 1 | J10: 5 | N10: 1 | O10: 20 | R10: 18 | S10: 20 | V10: 7
A11: 8 | B11: ساري محمد ساري جراده | C11: خامس أ | F11: 12 | J11: 9 | N11: 15 | O11: 14 | R11: 1 | S11: 20 | V11: 7
A12: 9 | B12: سراج الدين احمد عمر السماك | C12: خامس أ | F12: 18 | J12: 5 | N12: 13 | O12: 11 | R12: 1 | S12: 20 | V12: 12
A13: 10 | B13: سيف الدين منير محمد طاهر المعلواني | C13: خامس أ | F13: 1 | J13: 14 | N13: 24 | O13: 11 | R13: 1 | S13: 16 | V13: 21
A14: 11 | B14: سيف طارق رضوان المصرى | C14: خامس أ | F14: 1 | J14: 11 | N14: 1 | O14: 20 | R14: 13 | S14: 20 | V14: 1
A15: 12 | B15: صالح هيثم صالح الافغاني | C15: خامس أ | F15: 24 | J15: 17 | N15: 19 | O15: 11 | R15: 25 | S15: 17 | V15: 21
A16: 13 | B16: صلاح يوسف صلاح حسونة | C16: خامس أ | F16: 1 | J16: 5 | N16: 10 | O16: 19 | R16: 1 | S16: 20 | V16: 1
A17: 14 | B17: عبد الرحمن عادل عبدالرحمن الصباغ | C17: خامس أ | F17: 22 | J17: 17 | N17: 15 | O17: 10 | R17: 30 | S17: 20 | V17: 17
A18: 15 | B18: عبد الله عبد العزيز فتحي احمد جبريل | C18: خامس أ | F18: 12 | J18: 9 | N18: 21 | O18: 14 | R18: 13 | S18: 20 | V18: 17
A19: 16 | B19: عبدالرحمن عدنان عبدالرحمن الصباغ | C19: خامس أ | F19: 12 | J19: 23 | N19: 15 | O19: 15 | R19: 1 | S19: 16 | V19: 21
A20: 17 | B20: عبدالله انس شحاده العساف | C20: خامس أ | F20: 26 | J20: 23 | N20: 24 | O20: 14 | R20: 27 | S20: 17 | V20: 21
A21: 18 | B21: عبدالله ماهر عبد الفضيل ابراهيم | C21: خامس أ | F21: 1 | J21: 1 | N21: 1 | O21: 20 | R21: 1 | S21: 20 | V21: 1
A22: 19 | B22: عمر صلاح الدين محمد ابو هنطش | C22: خامس أ | F22: 1 | J22: 8 | N22: 12 | O22: 20 | R22: 1 | S22: 19 | V22: 17
A23: 20 | B23: فارس حسين زهير عياد | C23: خامس أ | F23: 12 | J23: 11 | N23: 13 | O23: 16 | R23: 1 | S23: 17 | V23: 1
A24: 21 | B24: كريم محمد زياد مهيار | C24: خامس أ | F24: 26 | J24: 23 | N24: 21 | O24: 12 | R24: 22 | S24: 20 | V24: 14
A25: 22 | B25: مالك غسان اسامه سلامه | C25: خامس أ | F25: 30 | J25: 17 | N25: 27 | O25: 10 | R25: 13 | S25: 18 | V25: 21
A26: 23 | B26: محمد محرم فريد سليمان | C26: خامس أ | F26: 24 | J26: 17 | N26: 27 | O26: 10 | R26: 28 | S26: 13 | V26: 14
A27: 24 | B27: مصطفى بلال احمد قاسم | C27: خامس أ | F27: 1 | J27: 1 | N27: 1 | O27: 19 | R27: 18 | S27: 19 | V27: 7
A28: 25 | B28: مصطفى محمد احمد ابراهيم احمد | C28: خامس أ | F28: 20 | J28: 23 | N28: 21 | O28: 10 | R28: 18 | S28: 19 | V28: 7
A29: 26 | B29: ناصر محمد اسماعيل رمانه | C29: خامس أ | F29: 26 | J29: 23 | N29: 27 | O29: 10 | R29: 30 | S29: 12 | V29: 21
A30: 27 | B30: نصر رئبال نصر الصيفي | C30: خامس أ | F30: 12 | J30: 23 | N30: 15 | O30: 14 | R30: 21 | S30: 20 | V30: 21
A31: 28 | B31: هلال محمد هلال النواتي | C31: خامس أ | F31: 29 | J31: 23 | N31: 27 | O31: 10 | R31: 25 | S31: 12 | V31: 21
A32: 29 | B32: وسيم خليل ذيب المعاني | C32: خامس أ | F32: 1 | J32: 1 | N32: 1 | O32: 20 | R32: 1 | S32: 19 | V32: 1
A33: 30 | B33: يحيى احمد خالد صالح | C33: خامس أ | F33: 1 | J33: 1 | N33: 1 | O33: 15 | R33: 1 | S33: 18 | V33: 12
A34: 31 | B34: يحيى علاء الدين زكريا حمدان | C34: خامس أ | F34: 1 | J34: 16 | N34: 1 | O34: 20 | R34: 1 | S34: 20 | V34: 7
A35: 32 | D35: عربي(2018) 1 | E35: عربي(2018) 2 | F35: عربي(2019) 1 | G35: عربي(2019) 2 | H35: انجليزي(2018) 1 | I35: انجليزي(2018) 2 | J35: انجليزي(2019) 1 | K35: انجليزي(2019) 2 | L35: رياضيات(2017/2018) 1 | M35: رياضيات(2017/2018) 2 | N35: رياضيات(2018/2019) 1 | O35: رياضيات(2018/2019) 2 | P35: العلوم(2017/2018) 1 | Q35: العلوم(2017/2018) 2 | R35: العلوم(2018/2019) 1 | S35: العلوم(2018/2019) 2 | T35: اسلامية(2017/2018) 1 | U35: اسلامية(2017/2018) 2 | V35: اسلامية(2018/2019) 1 | W35: اسلامية(2018/2019) 2 | X35: فيزياء(2018/2019) 1 | Y35: فيزياء(2018/2019) 2 | Z35: كيمياء(2018/2019) 1 | AA35: كيمياء(2018/2019) 2 | AB35: أحياء(2018/2019) 1 | AC35: أحياء(2017/2018) 1 | AD35: علوم أرض(2018/2019)1 | AE35: علوم أرض(2018/2019) 2
A36: 33 | B36: الخامس شعبة ب | C36: خامس ب
A37: 34 | B37: احمد محمد عثمان محمد علي مكاوي | C37: خامس ب | F37: 1 | J37: 3 | N37: 1 | R37: 1 | V37: 8
A38: 35 | B38: ادم جمال عثمان خندقجي | C38: خامس ب | F38: 1 | J38: 4 | N38: 1 | R38: 19 | V38: 8
A39: 36 | B39: انور منير انور حملاوي | C39: خامس ب | F39: 34 | J39: 33 | N39: 34 | R39: 34 | V39: 34
A40: 37 | B40: بكر محمد مصطفى حسونه | C40: خامس ب | F40: 27 | J40: 28 | N40: 20 | R40: 29 | V40: 23
A41: 38 | B41: زيد محمد سعيد عثمان علي | C41: خامس ب | F41: 1 | J41: 4 | N41: 1 | R41: 1 | V41: 8
A42: 39 | B42: سعدالدين هاشم صادق النتشه | C42: خامس ب | F42: 30 | J42: 13 | N42: 16 | R42: 14 | V42: 8
A43: 40 | B43: سمير محمد سمير الكردي | C43: خامس ب | F43: 17 | J43: 30 | N43: 24 | R43: 24 | V43: 18
A44: 41 | B44: سيف يوسف صقر العساف | C44: خامس ب | F44: 10 | J44: 4 | N44: 1 | R44: 10 | V44: 1
A45: 42 | B45: عاصم يزن عاصم قطيشات | C45: خامس ب | F45: 1 | J45: 1 | N45: 1 | R45: 1 | V45: 1
A46: 43 | B46: عبد الرحمن مهدي احمد مهدي | C46: خامس ب | F46: 21 | J46: 14 | N46: 18 | R46: 19 | V46: 16
A47: 44 | B47: عبد الله فيصل مسعود عمر | C47: خامس ب | F47: 28 | J47: 19 | N47: 24 | R47: 27 | V47: 23
A48: 45 | B48: عبدالرحمن اكرم عبد الحميد عواد | C48: خامس ب | F48: 14 | J48: 19 | N48: 20 | R48: 19 | V48: 23
A49: 46 | B49: عبدالرحمن غانم عبد العساف | C49: خامس ب | F49: 14 | J49: 19 | N49: 15 | R49: 19 | V49: 8
A50: 47 | B50: عبدالستار عفيف عبدالستار ضمرة | C50: خامس ب | F50: 32 | J50: 27 | N50: 24 | R50: 29 | V50: 23
A51: 48 | B51: عبدالله محمود لطفي العمايره | C51: خامس ب | F51: 21 | J51: 14 | N51: 20 | R51: 25 | V51: 1
A52: 49 | B52: عبدالله وصفي ابراهيم ابوغويلة | C52: خامس ب | F52: 1 | J52: 11 | N52: 9 | R52: 1 | V52: 8
A53: 50 | B53: عدي ضرار عبدالرحمن الداود | C53: خامس ب | F53: 10 | J53: 14 | N53: 13 | R53: 1 | V53: 23
A54: 51 | B54: علي محمود رجا يوسف | C54: خامس ب | F54: 17 | J54: 19 | N54: 9 | R54: 14 | V54: 20
A55: 52 | B55: عمر بدر احمد القواسمي | C55: خامس ب | F55: 10 | J55: 4 | N55: 1 | R55: 1 | V55: 19
A56: 53 | B56: عمر خليل عبد العظيم سلطان | C56: خامس ب | F56: 14 | J56: 19 | N56: 16 | R56: 19 | V56: 15
A57: 54 | B57: غيلان شمس فلاح الحسين | C57: خامس ب | F57: 21 | J57: 30 | N57: 33 | R57: 29 | V57: 23
A58: 55 | B58: فادي رائد عاطف الخطيب | C58: خامس ب | F58: 21 | J58: 19 | N58: 24 | R58: 28 | V58: 23
A59: 56 | B59: كرم خالد محمد عز | C59: خامس ب | F59: 17 | J59: 14 | N59: 18 | R59: 10 | V59: 1
A60: 57 | B60: محمد ماجد خالد العساف | C60: خامس ب | F60: 1 | J60: 4 | N60: 9 | R60: 1 | V60: 1
A61: 58 | B61: محمد هشام رفعت عيد | C61: خامس ب | F61: 21 | J61: 33 | N61: 30 | R61: 29 | V61: 23
A62: 59 | B62: محمد وسيم باسم زين الدين ابو طوق | C62: خامس ب | F62: 30 | J62: 14 | N62: 24 | R62: 10 | V62: 23
A63: 60 | B63: مصطفى معتز احمد جرادات | C63: خامس ب | F63: 1 | J63: 11 | N63: 9 | R63: 14 | V63: 16
A64: 61 | B64: معاذ عيسى علي الخضور | C64: خامس ب | F64: 28 | J64: 19 | N64: 24 | R64: 18 | V64: 20
A65: 62 | B65: مهند مناع عبد الرحمن العساف | C65: خامس ب | F65: 33 | J65: 28 | N65: 30 | R65: 25 | V65: 23
A66: 63 | B66: ميار مهند عبد الحميد جويحان | C66: خامس ب | F66: 1 | J66: 1 | N66: 1 | R66: 1 | V66: 1
A67: 64 | B67: وليد خالد شاهر عيسى | C67: خامس ب | F67: 1 | J67: 10 | N67: 14 | R67: 14 | V67: 8
A68: 65 | B68: يحيى محمد كامل كامل | C68: خامس ب | F68: 21 | J68: 19 | N68: 30 | R68: 29 | V68: 20
A69: 66 | B69: يوسف ايمن يوسف البطانجه | C69: خامس ب | F69: 17 | J69: 30 | N69: 20 | R69: 10 | V69: 23
A70: 67 | B70: يوسف زهير يونس البيكاوي | C70: خامس ب | F70: 10 | J70: 4 | N70: 1 | R70: 1 | V70: 1
A71: 68 | D71: عربي(2018) 1 | E71: عربي(2018) 2 | F71: عربي(2019) 1 | G71: عربي(2019) 2 | H71: انجليزي(2018) 1 | I71: انجليزي(2018) 2 | J71: انجليزي(2019) 1 | K71: انجليزي(2019) 2 | L71: رياضيات(2017/2018) 1 | M71: رياضيات(2017/2018) 2 | N71: رياضيات(2018/2019) 1 | O71: رياضيات(2018/2019) 2 | P71: العلوم(2017/2018) 1 | Q71: العلوم(2017/2018) 2 | R71: العلوم(2018/2019) 1 | S71: العلوم(2018/2019) 2 | T71: اسلامية(2017/2018) 1 | U71: اسلامية(2017/2018) 2 | V71: اسلامية(2018/2019) 1 | W71: اسلامية(2018/2019) 2 | X71: فيزياء(2018/2019) 1 | Y71: فيزياء(2018/2019) 2 | Z71: كيمياء(2018/2019) 1 | AA71: كيمياء(2018/2019) 2 | AB71: أحياء(2018/2019) 1 | AC71: أحياء(2017/2018) 1 | AD71: علوم أرض(2018/2019)1 | AE71: علوم أرض(2018/2019) 2
A72: 69 | B72: الخامس ج | C72: خامس ج
A73: 70 | B73: المعتصم بالله عبد الحافظ عاهد تيلخ | C73: خامس ج | F73: 1 | J73: 3 | N73: 1 | R73: 1 | V73: 1
A74: 71 | B74: انور محمود وليد سمور | C74: خامس ج | F74: 20 | J74: 21 | N74: 21 | R74: 27 | V74: 18
A75: 72 | B75: باسل هلال أحمد البيشاوي | C75: خامس ج | F75: 28 | J75: 21 | N75: 21 | R75: 23 | V75: 23
A76: 73 | B76: بكر محمد احمد البواب | C76: خامس ج | F76: 28 | J76: 21 | N76: 30 | R76: 31 | V76: 23
A77: 74 | B77: تامر أكرم موسى موسى | C77: خامس ج | F77: 28 | J77: 10 | N77: 26 | R77: 23 | V77: 23
A78: 75 | B78: حاتم حسان محمود بشير | C78: خامس ج | F78: 1 | J78: 10 | N78: 8 | R78: 1 | V78: 10
A79: 76 | B79: حازم خلدون يحيى الجلخ | C79: خامس ج | F79: 1 | J79: 3 | N79: 6 | R79: 1 | V79: 1
A80: 77 | B80: خالد جهاد مصطفى عبد الرحمن | C80: خامس ج | F80: 1 | J80: 10 | N80: 26 | R80: 21 | V80: 1
A81: 78 | B81: خليل ايمن خليل الباشا | C81: خامس ج | F81: 1 | J81: 10 | N81: 15 | R81: 1 | V81: 1
A82: 79 | B82: رامي عمر الهجوريو بلوش | C82: خامس ج | F82: 1 | J82: 10 | N82: 8 | R82: 1 | V82: 1
A83: 80 | B83: عادل محمد ابراهيم وشاح | C83: خامس ج | F83: 26 | J83: 21 | N83: 33 | R83: 30 | V83: 22
A84: 81 | B84: عز الدين هيثم محمد خير ناجي | C84: خامس ج | F84: 1 | J84: 10 | N84: 21 | R84: 1 | V84: 23
A85: 82 | B85: علي عمر عبد الفتاح محمد سيد | C85: خامس ج | F85: 27 | J85: 18 | N85: 30 | R85: 28 | V85: 23
A86: 83 | B86: علي فاضل داود سلمان | C86: خامس ج | F86: 20 | J86: 21 | N86: 26 | R86: 25 | V86: 19
A87: 84 | B87: عمر محمد رياض حمدان | C87: خامس ج | F87: 20 | J87: 9 | N87: 26 | R87: 1 | V87: 10
A88: 85 | B88: عمر محمد عطا الجعبري | C88: خامس ج | F88: 20 | J88: 21 | N88: 1 | R88: 1 | V88: 1
A89: 86 | B89: عمر ياسر رأفت عثمان | C89: خامس ج | F89: 31 | J89: 21 | N89: 21 | R89: 31 | V89: 23
A90: 87 | B90: فخر الدين عصام خالد معبد | C90: خامس ج | F90: 1 | J90: 5 | N90: 21 | R90: 21 | V90: 19
A91: 88 | B91: ليث رائد محمود الرطروط | C91: خامس ج | F91: 31 | J91: 21 | N91: 30 | R91: 26 | V91: 23
A92: 89 | B92: ماجد محمود عبد الرؤوف العبادي | C92: خامس ج | F92: 1 | J92: 18 | N92: 15 | R92: 31 | V92: 23
A93: 90 | B93: محمد احمد سعيد تركيه | C93: خامس ج | F93: 1 | J93: 5 | N93: 1 | R93: 1 | V93: 17
A94: 91 | B94: محمد اسامه جبريل الختاتنه | C94: خامس ج | F94: 1 | J94: 1 | N94: 1 | R94: 1 | V94: 1
A95: 92 | B95: محمد ايمن ابراهيم خريم | C95: خامس ج | F95: 1 | J95: 10 | N95: 14 | R95: 1 | V95: 10
A96: 93 | B96: محمد براق طارق الشاطي | C96: خامس ج | F96: 1 | J96: 5 | N96: 8 | R96: 1 | V96: 10
A97: 94 | B97: محمد حسين علام عبد العليم | C97: خامس ج | F97: 25 | J97: 21 | N97: 13 | R97: 1 | V97: 23
A98: 95 | B98: محمد فيصل مرعي الشلبي | C98: خامس ج | F98: 1 | J98: 1 | N98: 1 | R98: 1 | V98: 1
A99: 96 | B99: مصطفى عمر ذياب عبدالجليل | C99: خامس ج | F99: 1 | J99: 5 | N99: 18 | R99: 1 | V99: 1
A100: 97 | B100: نبيل خالد محمد فرج | C100: خامس ج | F100: 33 | J100: 21 | N100: 8 | R100: 1 | V100: 23
A101: 98 | B101: هدال انور محمود الهباهبه | C101: خامس ج | F101: 1 | J101: 10 | N101: 12 | R101: 1 | V101: 16
A102: 99 | B102: وائل ابراهيم غازي الدردنجي | C102: خامس ج | F102: 1 | J102: 21 | N102: 18 | R102: 1 | V102: 10
A103: 100 | B103: وسيم أشرف سليمان خريسات | C103: خامس ج | F103: 1 | J103: 18 | N103: 15 | R103: 1 | V103: 21
A104: 101 | B104: يحيى مصباح الدين يوسف ملك | C104: خامس ج | F104: 1 | J104: 21 | N104: 6 | R104: 1 | V104: 10
A105: 102 | B105: يزن ماهر عليان هويدي | C105: خامس ج | F105: 20 | J105: 21 | N105: 18 | R105: 28 | V105: 23
A106: 103 | D106: عربي(2018) 1 | E106: عربي(2018) 2 | F106: عربي(2019) 1 | G106: عربي(2019) 2 | H106: انجليزي(2018) 1 | I106: انجليزي(2018) 2 | J106: انجليزي(2019) 1 | K106: انجليزي(2019) 2 | L106: رياضيات(2017/2018) 1 | M106: رياضيات(2017/2018) 2 | N106: رياضيات(2018/2019) 1 | O106: رياضيات(2018/2019) 2 | P106: العلوم(2017/2018) 1 | Q106: العلوم(2017/2018) 2 | R106: العلوم(2018/2019) 1 | S106: العلوم(2018/2019) 2 | T106: اسلامية(2017/2018) 1 | U106: اسلامية(2017/2018) 2 | V106: اسلامية(2018/2019) 1 | W106: اسلامية(2018/2019) 2 | X106: فيزياء(2018/2019) 1 | Y106: فيزياء(2018/2019) 2 | Z106: كيمياء(2018/2019) 1 | AA106: كيمياء(2018/2019) 2 | AB106: أحياء(2018/2019) 1 | AC106: أحياء(2017/2018) 1 | AD106: علوم أرض(2018/2019)1 | AE106: علوم أرض(2018/2019) 2
A107: 104 | B107: الخامس شعبة د | C107: خامس د
A108: 105 | B108: ابراهيم راشد محمد علي الحلبي | C108: خامس د | F108: 22 | J108: 21 | N108: 29 | R108: 29 | V108: 25
A109: 106 | B109: ابراهيم منتصر ابراهيم الياس | C109: خامس د | F109: 5 | J109: 7 | N109: 10 | R109: 1 | V109: 1
A110: 107 | B110: احمد السيد ماهر محمد | C110: خامس د | F110: 5 | J110: 16 | N110: 18 | R110: 1 | V110: 1
A111: 108 | B111: احمد امجد محمد استيتي | C111: خامس د | F111: 5 | J111: 6 | N111: 1 | R111: 1 | V111: 1
A112: 109 | B112: احمد خلدون احمد البديوي | C112: خامس د | F112: 17 | J112: 21 | N112: 21 | R112: 25 | V112: 25
A113: 110 | B113: احمد محمد عبد الفتاح عموري | C113: خامس د | F113: 5 | J113: 21 | N113: 33 | R113: 25 | V113: 15
A114: 111 | B114: ادم مراد احمد كرجه | C114: خامس د | F114: 17 | J114: 1 | N114: 1 | R114: 1 | V114: 21
A115: 112 | B115: اسامة محمد فتحي قنديل | C115: خامس د | F115: 22 | J115: 10 | N115: 12 | R115: 1 | V115: 21
A116: 113 | B116: آدم وضاح محمد علي الخليلي | C116: خامس د | F116: 1 | J116: 1 | N116: 1 | R116: 14 | V116: 1
A117: 114 | B117: بدر امجد خالد العساف | C117: خامس د | F117: 22 | J117: 16 | N117: 16 | R117: 1 | V117: 25
A118: 115 | B118: زيد فؤاد عباس حلمي | C118: خامس د | F118: 17 | J118: 16 | N118: 24 | R118: 32 | V118: 15
A119: 116 | B119: سعيد جمال سعيد الخنافسة | C119: خامس د | F119: 31 | J119: 21 | N119: 29 | R119: 34 | V119: 25
A120: 117 | B120: شهم محمد عبداللطيف الجيوسي | C120: خامس د | F120: 5 | J120: 21 | N120: 16 | R120: 14 | V120: 25
A121: 118 | B121: عبدالرحمن اسامه توفيق كيوان | C121: خامس د | F121: 5 | J121: 21 | N121: 1 | R121: 1 | V121: 1
A122: 119 | B122: عبدالله باسم عيسى ابو الفيلات | C122: خامس د | F122: 1 | J122: 7 | N122: 18 | R122: 1 | V122: 17
A123: 120 | B123: عبدالله محمد عبدالله الخلايله | C123: خامس د | F123: 5 | J123: 7 | N123: 1 | R123: 1 | V123: 1
A124: 121 | B124: عز الدين حمزه احمد القواسمي | C124: خامس د | F124: 5 | J124: 21 | N124: 13 | R124: 1 | V124: 19
A125: 122 | B125: علي عادل ثامر ثامر | C125: خامس د | F125: 32 | J125: 21 | N125: 21 | R125: 14 | V125: 23
A126: 123 | B126: فيصل بسام محمود محمود | C126: خامس د | F126: 32 | J126: 21 | N126: 33 | R126: 29 | V126: 25
A127: 124 | B127: كرم علي محمد عبدالعال | C127: خامس د | F127: 22 | J127: 10 | N127: 24 | R127: 20 | V127: 25
A128: 125 | B128: ماهر خالد هاني عناب | C128: خامس د | F128: 1 | J128: 10 | N128: 13 | R128: 20 | V128: 10
A129: 126 | B129: محمد اسامه مصطفى ابو جابر | C129: خامس د | F129: 5 | J129: 3 | N129: 8 | R129: 1 | V129: 1
A130: 127 | B130: محمد خليل شعبان خليل ابراهيم | C130: خامس د | F130: 17 | J130: 15 | N130: 1 | R130: 14 | V130: 23
A131: 128 | B131: محمد سامي عبد الجواد السيوري | C131: خامس د | F131: 28 | J131: 21 | N131: 24 | R131: 25 | V131: 25
A132: 129 | B132: محمد طارق محمد السكافي | C132: خامس د | F132: 5 | J132: 21 | N132: 27 | R132: 25 | V132: 1
A133: 130 | B133: محمد عصام علي النعيمي | C133: خامس د | F133: 30 | J133: 16 | N133: 29 | R133: 20 | V133: 19
A134: 131 | B134: محمد عمر محمد العياصره | C134: خامس د | F134: 1 | J134: 3 | N134: 1 | R134: 1 | V134: 10
A135: 132 | B135: محمود غسان محمود العمايره | C135: خامس د | F135: 22 | J135: 10 | N135: 13 | R135: 20 | V135: 17
A136: 133 | B136: نور الدين عايد خليل ابو درويش | C136: خامس د | F136: 5 | J136: 16 | N136: 8 | R136: 14 | V136: 10
A137: 134 | B137: هاشم محمد عبدالكريم الحلاج | C137: خامس د | F137: 28 | J137: 3 | N137: 18 | R137: 29 | V137: 10
A138: 135 | B138: يحيى فؤاد نظير دروزه | C138: خامس د | F138: 5 | J138: 10 | N138: 29 | R138: 32 | V138: 1
A139: 136 | B139: يزيد علاء رمضان الجغبير | C139: خامس د | F139: 27 | J139: 21 | N139: 21 | R139: 14 | V139: 10
A140: 137 | B140: يسى روماني زخاري يوسف | C140: خامس د | F140: 17 | J140: 21 | N140: 10 | R140: 1 | V140: 0
A141: 138 | B141: يوسف عطيه باشا وهدان | C141: خامس د | F141: 32 | J141: 21 | N141: 27 | R141: 24 | V141: 25
A142: 139 | C142: السادس أ | D142: عربي(2018) 1 | E142: عربي(2018) 2 | F142: عربي(2019) 1 | G142: عربي(2019) 2 | H142: انجليزي(2018) 1 | I142: انجليزي(2018) 2 | J142: انجليزي(2019) 1 | K142: انجليزي(2019) 2 | L142: رياضيات(2017/2018) 1 | M142: رياضيات(2017/2018) 2 | N142: رياضيات(2018/2019) 1 | O142: رياضيات(2018/2019) 2 | P142: العلوم(2017/2018) 1 | Q142: العلوم(2017/2018) 2 | R142: العلوم(2018/2019) 1 | S142: العلوم(2018/2019) 2 | T142: اسلامية(2017/2018) 1 | U142: اسلامية(2017/2018) 2 | V142: اسلامية(2018/2019) 1 | W142: اسلامية(2018/2019) 2 | X142: فيزياء(2018/2019) 1 | Y142: فيزياء(2018/2019) 2 | Z142: كيمياء(2018/2019) 1 | AA142: كيمياء(2018/2019) 2 | AB142: أحياء(2018/2019) 1 | AC142: أحياء(2017/2018) 1 | AD142: علوم أرض(2018/2019)1 | AE142: علوم أرض(2018/2019) 2
A143: 140 | B143: السادس شعبة أ | C143: السادس أ
A144: 141 | B144: ابراهيم عبد الله موسى قباعه | C144: السادس أ | F144: 20 | J144: 5 | N144: 17 | R144: 18 | V144: 29
A145: 142 | B145: احمد محمد محمود دراج | C145: السادس أ | F145: 16 | J145: 17 | N145: 24 | R145: 5 | V145: 30
A146: 143 | B146: احمد نادر زهدي النادي | C146: السادس أ | F146: 12 | J146: 5 | N146: 2 | R146: 5 | V146: 12
A147: 144 | B147: اوس عامر احمد العبادي | C147: السادس أ | F147: 1 | J147: 1 | N147: 2 | R147: 1 | V147: 21
A148: 145 | B148: بادي عماد ابراهيم أبو غويلة | C148: السادس أ | F148: 1 | J148: 9 | N148: 5 | R148: 5 | V148: 1
A149: 146 | B149: بحر محمد أحمد البشيش | C149: السادس أ | F149: 26 | J149: 35 | N149: 32 | R149: 14 | V149: 26
A150: 147 | B150: جبريل عماد مصطفى حسونه | C150: السادس أ | F150: 36 | J150: 32 | N150: 22 | R150: 36 | V150: 30
A151: 148 | B151: خليل مراد محمد الدراعين | C151: السادس أ | F151: 12 | J151: 23 | N151: 22 | R151: 25 | V151: 30
A152: 149 | B152: راشد ربيع محمود العساف | C152: السادس أ | F152: 15 | J152: 32 | N152: 27 | R152: 5 | V152: 26
A153: 150 | B153: راشد عدنان خليل الانصاري | C153: السادس أ | F153: 37 | J153: 37 | N153: 37 | R153: 37 | V153: 37
A154: 151 | B154: ريان إياد عطية أبو الحصين | C154: السادس أ | F154: 16 | J154: 17 | N154: 5 | R154: 27 | V154: 12
A155: 152 | B155: زيد محمد يحيى ابوجمل | C155: السادس أ | F155: 8 | J155: 15 | N155: 24 | R155: 14 | V155: 18
A156: 153 | B156: سراج الدين ظافر اسماعيل اللوز | C156: السادس أ | F156: 16 | J156: 11 | N156: 24 | R156: 25 | V156: 1
A157: 154 | B157: سليم فراس صدقي سليمان | C157: السادس أ | F157: 6 | J157: 5 | N157: 17 | R157: 1 | V157: 1
A158: 155 | B158: سيف جمال عثمان خندقجي | C158: السادس أ | F158: 8 | J158: 1 | N158: 5 | R158: 5 | V158: 1
A159: 156 | B159: سيف طاالب مصباح سليم | C159: السادس أ | F159: 35 | J159: 23 | N159: 27 | R159: 27 | V159: 18
A160: 157 | B160: طلال مجدى زهير المهتدى | C160: السادس أ | F160: 22 | J160: 22 | N160: 30 | R160: 14 | V160: 26
A161: 158 | B161: عبد الرحمن ايهاب عوض الله كنعان | C161: السادس أ | F161: 22 | J161: 25 | N161: 12 | R161: 34 | V161: 1
A162: 159 | B162: عبد الرحمن باسم علي الخضور | C162: السادس أ | F162: 12 | J162: 15 | N162: 12 | R162: 19 | V162: 21
A163: 160 | B163: عبد الله ابراهيم حسن ابو العدس | C163: السادس أ | F163: 22 | J163: 14 | N163: 30 | R163: 29 | V163: 18
A164: 161 | B164: عبد الله عدنان خليل الانصاري | C164: السادس أ | F164: 37 | J164: 37 | N164: 37 | R164: 37 | V164: 37
A165: 162 | B165: عبدالرحمن مازن عبدالرحمن ابو هاني | C165: السادس أ | F165: 22 | J165: 28 | N165: 17 | R165: 5 | V165: 12
A166: 163 | B166: عبدالله بشار فوزي صالح | C166: السادس أ | F166: 26 | J166: 17 | N166: 11 | R166: 19 | V166: 12
A167: 164 | B167: عثمان احمد محمد ابودريع | C167: السادس أ | F167: 8 | J167: 17 | N167: 5 | R167: 19 | V167: 21
A168: 165 | B168: علي ابراهيم علي عقده | C168: السادس أ | F168: 1 | J168: 1 | N168: 1 | R168: 1 | V168: 1
A169: 166 | B169: عمر اشرف مصطفى عوده | C169: السادس أ | F169: 26 | J169: 36 | N169: 32 | R169: 33 | V169: 21
A170: 167 | B170: عمر اكرم موسى خضر | C170: السادس أ | F170: 26 | J170: 25 | N170: 12 | R170: 23 | V170: 21
A171: 168 | B171: عمر سعيد محمد الشيخ قاسم | C171: السادس أ | F171: 26 | J171: 25 | N171: 12 | R171: 23 | V171: 30
A172: 169 | B172: عمر عبدالناصر سند العكايلة | C172: السادس أ | F172: 1 | J172: 5 | N172: 5 | R172: 5 | V172: 1
A173: 170 | B173: عمر منذر مصطفى عميره | C173: السادس أ | F173: 6 | J173: 11 | N173: 17 | R173: 19 | V173: 1
A174: 171 | B174: فارس اسحاق ابراهيم باكير | C174: السادس أ | F174: 26 | J174: 28 | N174: 32 | R174: 32 | V174: 30
A175: 172 | B175: كرم اياد جمال حسن | C175: السادس ب | F175: 1 | J175: 1 | N175: 5 | R175: 1 | V175: 1
A176: 173 | B176: لؤي رشاد رضوان عبدالوهاب | C176: السادس ب | F176: 16 | J176: 9 | N176: 2 | R176: 5 | V176: 1
A177: 174 | B177: ليث احمد حسن الريالات | C177: السادس ب | F177: 20 | J177: 30 | N177: 27 | R177: 14 | V177: 12
A178: 175 | B178: محمد احمد خليل جوهر | C178: السادس ب | F178: 26 | J178: 30 | N178: 32 | R178: 31 | V178: 30
A179: 176 | B179: محمد محمود محمد النعيمات | C179: السادس ب | F179: 8 | J179: 11 | N179: 17 | R179: 5 | V179: 1
A180: 177 | B180: محمود منذر محمود باكير | C180: السادس ب | F180: 26 | J180: 17 | N180: 16 | R180: 30 | V180: 12
A181: 178 | B181: معتصم بالله غسان ابراهيم الموسى | C181: السادس ب | F181: 26 | J181: 32 | N181: 32 | R181: 34 | V181: 30
A182: 179 | D182: عربي(2018) 1 | E182: عربي(2018) 2 | F182: عربي(2019) 1 | G182: عربي(2019) 2 | H182: انجليزي(2018) 1 | I182: انجليزي(2018) 2 | J182: انجليزي(2019) 1 | K182: انجليزي(2019) 2 | L182: رياضيات(2017/2018) 1 | M182: رياضيات(2017/2018) 2 | N182: رياضيات(2018/2019) 1 | O182: رياضيات(2018/2019) 2 | P182: العلوم(2017/2018) 1 | Q182: العلوم(2017/2018) 2 | R182: العلوم(2018/2019) 1 | S182: العلوم(2018/2019) 2 | T182: اسلامية(2017/2018) 1 | U182: اسلامية(2017/2018) 2 | V182: اسلامية(2018/2019) 1 | W182: اسلامية(2018/2019) 2 | X182: فيزياء(2018/2019) 1 | Y182: فيزياء(2018/2019) 2 | Z182: كيمياء(2018/2019) 1 | AA182: كيمياء(2018/2019) 2 | AB182: أحياء(2018/2019) 1 | AC182: أحياء(2017/2018) 1 | AD182: علوم أرض(2018/2019)1 | AE182: علوم أرض(2018/2019) 2
A183: 180 | B183: السادس ب | C183: السادس ب
A184: 181 | B184: ابراهيم محمد احمد ابورزق | C184: السادس ب | F184: 24 | J184: 18 | N184: 32 | R184: 16 | V184: 15
A185: 182 | B185: ابي عبد السلام عطوه الفندي | C185: السادس ب | F185: 35 | J185: 25 | N185: 20 | R185: 32 | V185: 1
A186: 183 | B186: اوس محمد نايف الشلبي | C186: السادس ب | F186: 25 | J186: 33 | N186: 28 | R186: 27 | V186: 27
A187: 184 | B187: باسل جهاد قاسم زياده | C187: السادس ب | F187: 8 | J187: 13 | N187: 20 | R187: 18 | V187: 15
A188: 185 | B188: بدر حكم راجي ابو هديب | C188: السادس ب | F188: 10 | J188: 15 | N188: 3 | R188: 13 | V188: 1
A189: 186 | B189: بكر محمد وجيه محمود | C189: السادس ب | F189: 1 | J189: 5 | N189: 6 | R189: 1 | V189: 1
A190: 187 | B190: حسن ماهر صادق حسن مرعي | C190: السادس ب | F190: 1 | J190: 5 | N190: 1 | R190: 1 | V190: 1
A191: 188 | B191: حسين ابراهيم السيد انور العكل | C191: السادس ب | F191: 28 | J191: 32 | N191: 32 | R191: 34 | V191: 27
A192: 189 | B192: حمزه بسام عبدالفتاح ابو رمان | C192: السادس ب | F192: 22 | J192: 26 | N192: 32 | R192: 29 | V192: 22
A193: 190 | B193: خالد لؤى محمد سعيد رحال | C193: السادس ب | F193: 10 | J193: 17 | N193: 16 | R193: 18 | V193: 27
A194: 191 | B194: ريان وليد محمد الاسود | C194: السادس ب | F194: 28 | J194: 33 | N194: 32 | R194: 29 | V194: 27
A195: 192 | B195: زيد محمد مسعود سعيد | C195: السادس ب | F195: 16 | J195: 5 | N195: 25 | R195: 23 | V195: 1
A196: 193 | B196: سالم حسن سالم الجبور | C196: السادس ب | F196: 20 | J196: 9 | N196: 11 | R196: 10 | V196: 1
A197: 194 | B197: صالح علاء محمد سريوة | C197: السادس ب | F197: 28 | J197: 33 | N197: 30 | R197: 34 | V197: 27
A198: 195 | B198: عبد الرحمن ابراهيم احمد الحياري | C198: السادس ب | F198: 16 | J198: 20 | N198: 16 | R198: 1 | V198: 27
A199: 196 | B199: عبد الرحمن اسلام عبد الكريم الحرحشي | C199: السادس ب | F199: 10 | J199: 9 | N199: 6 | R199: 1 | V199: 27
A200: 197 | B200: عبد الرحمن ربحي عبد الحق ابو يعقوب | C200: السادس ب | F200: 1 | J200: 1 | N200: 6 | R200: 1 | V200: 25
A201: 198 | B201: عبدالرحمن عمر صبحي سليمان | C201: السادس ب | F201: 8 | J201: 13 | N201: 11 | R201: 18 | V201: 1
A202: 199 | B202: عز الدين حمزه يوسف الكردي | C202: السادس ب | F202: 10 | J202: 22 | N202: 6 | R202: 26 | V202: 15
... 604 more rows
